[Event "Vienna Championship-B 2022"]
[Site "Vienna"]
[Date "2022.09.18"]
[Round "2.1"]
[White "Obenaus, Paul"]
[Black "Kummer, Helmut"]
[Result "1/2-1/2"]
[ECO "D37"]
[WhiteElo "1825"]
[BlackElo "2203"]
[Annotator "TA"]
[PlyCount "105"]
[EventDate "2022.09.17"]
[EventType "swiss"]
[EventCountry "AUT"]
[SourceTitle "playchess.com"]
[Source "ChessBase"]
[SourceQuality "1"]
[TimeControl "5400+30"]

{[%evp 13,105,17,22,6,37,14,30,0,63,35,37,37,39,39,35,29,84,84,77,47,34,39,83,89,122,130,139,137,174,129,152,149,145,89,202,212,224,217,214,224,249,239,232,213,268,260,289,289,282,249,276,271,257,246,246,246,245,115,235,176,177,0,115,0,192,115,115,9,9,0,0,0,0,0,0,0,0,0,0,0,0,0,0,0,0,0,0,0,65,65,65,65,72,0]} 1. d4 {[%emt 0:00:04]} d5 {[%emt 0:00:48]} 2. c4 {[%emt 0:00:06]} e6 {[%emt 0:00:21]} 3. Nf3 {[%emt 0:00:13]} Nf6 {[%emt 0:00:46]} 4. Nc3 {[%emt 0:00:06]} Be7 {[%emt 0:01:49]} 5. Bf4 {[%emt 0:00:24]} O-O {[%emt 0:02:22]} 6. e3 {[%emt 0:00:09]} a6 {[%emt 0:02:56]} 7. c5 {[%emt 0:00:42]} b6 {[%emt 0:17:37]} 8. b4 {[%emt 0:00:21] D37: Queen's Gambit Declined: 5 Bf4.} Bb7 {[%emt 0:01:54]} 9. Bd3 {[%emt 0:12:36]} Ne4 {[%emt 0:02:09] [#]} 10. Rc1 $146 {[%emt 0:07:09] White has an edge.} (10. Qc2 $5 {[%cal Rc3e4]}) ({Predecessor:} 10. Qc2 f5 11. h3 Nc6 12. a3 Rc8 13. Ne5 Nxe5 14. Bxe5 Bf6 15. c6 Bxc6 16. Nxe4 fxe4 17. Bxa6 {½-½ (60) Klugstedt,V (1877)-Alexandrov,D (1785) Kiel 2022}) 10... f5 {[%emt 0:12:04]} (10... a5 $11) 11. h3 {[%emt 0:13:00]} a5 {[%emt 0:13:36]} 12. a3 {[%emt 0:18:56] And now Nb5 would win.} axb4 {[%emt 0:00:09]} 13. axb4 {[%emt 0:01:53]} bxc5 {[%emt 0:02:12]} 14. bxc5 {[%emt 0:02:03]} c6 {[%emt 0:07:42] Inhibits Nb5.} (14... Bf6 $11) 15. O-O {[%emt 0:05:02]} Nd7 {[%emt 0:01:18]} 16. Ne5 {[%emt 0:03:38]} (16. Qb3 $5 {[%cal Rb3b7]} Qc8 17. Rb1 $14) 16... Nxe5 {[%emt 0:05:06]} 17. Bxe5 {[%emt 0:00:18]} Nxc3 {[%emt 0:06:38]} 18. Rxc3 {[%emt 0:00:12]} Ba6 {[%emt 0:00:02]} 19. Bxa6 {[%emt 0:02:31] White has more active pieces.} Rxa6 {[%emt 0:00:05]} 20. Rb3 {[%emt 0:01:12]} Qd7 {[%emt 0:02:54]} 21. Qb1 {[%emt 0:05:49] Rb7 is the strong threat.} Ra7 {[%emt 0:05:07] Against Rb7} 22. Bb8 $1 {[%emt 0:01:57]} Ra8 {[%emt 0:00:05]} 23. Rb7 {[%emt 0:02:02]} (23. Qb2 $142 $1) 23... Qc8 {[%emt 0:00:50]} (23... Qe8 $16 24. Bc7 Rf7) 24. Be5 $1 $18 {[%emt 0:01:15]} ({Don't do} 24. Rxe7 $6 Rxb8 25. Qa2 Ra8 $14) 24... Bf6 {[%emt 0:00:19] [#]} 25. Rc7 $1 {[%emt 0:02:33]} Qa6 {[%emt 0:04:12]} 26. Bxf6 {[%emt 0:02:01]} Rxf6 {[%emt 0:03:36]} 27. Qb6 {[%emt 0:00:54]} f4 {[%emt 0:03:21]} 28. Rxc6 {[%emt 0:04:29]} Qxb6 {[%emt 0:02:25]} 29. cxb6 {[%emt 0:01:37]} ({Don't take} 29. Rxb6 $6 Ra2 30. Rb7 Rf7 31. Rb8+ Rf8 $16) 29... fxe3 {[%emt 0:00:53]} 30. fxe3 {[%emt 0:03:23]} Rxf1+ {[%emt 0:00:08]} 31. Kxf1 {[%emt 0:00:06][%mdl 4096] Endgame KR-KR} Kf7 {[%emt 0:00:02]} 32. b7 {[%emt 0:02:33]} Ra1+ {[%emt 0:00:04]} 33. Ke2 {[%emt 0:00:29]} Rb1 {[%emt 0:00:03]} 34. Rc7+ {[%emt 0:00:11]} Kf6 {[%emt 0:00:05]} 35. Kd3 {[%emt 0:01:01]} (35. g4 $18 {has better winning chances.}) 35... Rb3+ {[%emt 0:01:00]} (35... h5 $16 36. e4 g6 37. e5+ Kf5 38. Rf7+ Kg5) 36. Kc2 {[%emt 0:00:31]} Rb5 {[%emt 0:00:07]} 37. Kd3 {[%emt 0:00:27]} (37. g4 $18) 37... Rb3+ $1 $16 {[%emt 0:00:04] [#]} 38. Kc2 {[%emt 0:00:14]} (38. Kd2 $1 $16) 38... Rb5 $1 $18 {[%emt 0:00:05]} 39. Kc3 {[%emt 0:02:30]} (39. g4 $18) 39... h5 $16 {[%emt 0:00:08]} 40. g3 {[%emt 0:03:02]} (40. h4 $16) 40... g5 $11 {[%emt 0:00:36]} 41. g4 {[%emt 0:00:48]} hxg4 {[%emt 0:00:28]} 42. hxg4 {[%emt 0:00:04]} Rb1 {[%emt 0:00:19]} 43. Kd3 {[%emt 0:01:07] Black must now prevent e4.} Rb3+ {[%emt 0:00:06]} 44. Ke2 {[%emt 0:00:23]} Rb2+ {[%emt 0:00:41]} 45. Kf3 {[%emt 0:00:07]} Rb3 {[%emt 0:00:11]} 46. Rd7 {[%emt 0:00:21]} Kg6 {[%emt 0:00:18]} 47. Re7 {[%emt 0:00:24]} Kf6 {[%emt 0:00:08]} 48. Rd7 {[%emt 0:00:13]} Kg6 {[%emt 0:00:06]} 49. Rd6 {[%emt 0:00:56]} (49. Ke2 $11) 49... Kf6 $14 {[%emt 0:00:16]} 50. Rd7 {[%emt 0:00:38]} Kg6 $1 {[%emt 0:00:06]} 51. Kf2 {[%emt 0:00:47]} Kf6 {[%emt 0:00:37]} 52. Ke2 {[%emt 0:00:13]} Kg6 {[%emt 0:00:19]} 53. Ke1 {[%emt 0:03:20] Blacks defense is rewarded with a draw.  Weighted Error Value: White=0.23 (precise) /Black=0.14 (very precise)} ({White should play} 53. Kf3 $16) 1/2-1/2

[Event "Vienna Championship-B 2022"]
[Site "Vienna"]
[Date "2022.09.18"]
[Round "2.2"]
[White "Wagner, Leopold Franziskus"]
[Black "Deak-Sala, Emilia"]
[Result "1-0"]
[ECO "B20"]
[WhiteElo "2201"]
[BlackElo "1787"]
[Annotator "TA"]
[PlyCount "47"]
[EventDate "2022.09.17"]
[EventType "swiss"]
[EventCountry "AUT"]
[SourceTitle "playchess.com"]
[Source "ChessBase"]
[SourceQuality "1"]
[TimeControl "5400+30"]

{[%evp 9,47,-6,-14,-16,26,10,44,44,62,40,89,81,98,84,85,91,121,66,112,120,110,113,152,167,260,242,238,157,414,364,430,381,364,279,889,811,773,783,922,921]} 1. e4 {[%emt 0:00:02]} c5 {[%emt 0:00:20]} 2. b3 {[%emt 0:00:08]} Nc6 {[%emt 0:00:34]} 3. Bb2 {[%emt 0:00:05]} d6 {[%emt 0:01:33]} 4. Bb5 {[%emt 0:00:08]} Bd7 {[%emt 0:00:39]} 5. f4 {[%emt 0:00:07]} e6 {[%emt 0:03:25]} 6. Nf3 {[%emt 0:00:15] B20: Sicilian: Unusual White 2nd moves.} Qb6 {[%emt 0:03:06]} 7. c4 {[%emt 0:06:50]} O-O-O {[%emt 0:11:00][%cal Od6d5]} 8. O-O {[%emt 0:02:43] [#] White is slightly better.} Nge7 $146 {[%emt 0:05:05]} ({Predecessor:} 8... Nf6 9. d3 Be7 10. Nbd2 Ng4 11. Qe2 Bf6 12. e5 dxe5 13. fxe5 Be7 14. Ne4 Nb4 {1-0 (34) Souleidis,G (2384)-Schoene,M (2236) Erfurt 2014}) 9. Kh1 {[%emt 0:03:08]} h6 {[%emt 0:10:56]} (9... Kb8 $14) 10. d4 $16 {[%emt 0:06:15]} f5 {[%emt 0:14:50]} 11. Bxc6 {[%emt 0:18:20]} Bxc6 {[%emt 0:05:30]} 12. d5 {[%emt 0:01:59]} Bd7 {[%emt 0:06:37]} 13. exf5 {[%emt 0:03:15]} (13. dxe6 $16 Bxe6 14. exf5 Bxc4 15. Re1) 13... Nxf5 {[%emt 0:33:25]} (13... exd5 $14 {is superior.} 14. f6 gxf6) 14. dxe6 {[%emt 0:02:44]} Bxe6 {[%emt 0:00:00]} 15. Nc3 {[%emt 0:00:54]} d5 {[%emt 0:00:00]} 16. cxd5 {[%emt 0:02:09]} ({But not} 16. Nxd5 $6 Bxd5 17. cxd5 Ne3 $11) 16... Ne3 {[%emt 0:00:00]} (16... Bxd5 {keeps fighting.} 17. Nxd5 Qc6) 17. Qe2 {[%emt 0:00:06]} Nxd5 {[%emt 0:00:00]} 18. Na4 {[%emt 0:00:24]} Qd6 {[%emt 0:00:00] [#]} (18... Qa6 $16 {is a better defense.} 19. Qxa6 bxa6) 19. Ne5 {[%emt 0:01:44][%cal Bf3e5,Be5f7,Bf7h8][%mdl 32]} Nc7 {[%emt 0:00:00]} 20. Rad1 {[%emt 0:02:25] Inhibits Qd2.} Bd5 {[%emt 0:00:00]} 21. Nf7 {[%emt 0:02:49] Pair of Knights!} Qc6 {[%emt 0:02:21]} (21... Bxf7 22. Rxd6 Bxd6 23. Qg4+ Be6) 22. Nxh8 {[%emt 0:00:42] White is clearly winning.} Re8 {[%emt 0:01:38]} 23. Qg4+ {[%emt 0:01:27]} Be6 {[%emt 0:00:26]} 24. f5 {[%emt 0:00:09] Black got outplayed after the opening.  Weighted Error Value: White=0.24 (precise) /Black=0.55} 1-0

[Event "Vienna Championship-B 2022"]
[Site "Vienna"]
[Date "2022.09.18"]
[Round "2.3"]
[White "Ginther, Tobias"]
[Black "Bonk, Andras"]
[Result "0-1"]
[ECO "B33"]
[WhiteElo "1766"]
[BlackElo "2175"]
[Annotator "TA"]
[PlyCount "77"]
[EventDate "2022.09.17"]
[EventType "swiss"]
[EventCountry "AUT"]
[SourceTitle "playchess.com"]
[Source "ChessBase"]
[SourceQuality "1"]
[TimeControl "5400+30"]

{[%evp 22,77,14,15,5,0,19,10,0,4,6,7,8,0,0,0,10,0,7,0,0,0,0,-18,-10,-12,-6,-12,-6,-26,-30,-35,-25,-88,-91,-129,-102,-124,-114,-131,-101,-175,-100,-103,-48,-196,-92,-726,-552,-552,-719,-666,-543,-539,-535,-29962,-12297,-6427]} 1. e4 {[%emt 0:00:44]} c5 {[%emt 0:00:04]} 2. Nf3 {[%emt 0:00:08]} Nc6 {[%emt 0:00:01]} 3. d4 {[%emt 0:00:08]} cxd4 {[%emt 0:00:06]} 4. Nxd4 {[%emt 0:00:27]} Nf6 {[%emt 0:00:04]} 5. Nc3 {[%emt 0:00:09]} e6 {[%emt 0:00:05]} 6. Ndb5 {[%emt 0:00:49]} d6 {[%emt 0:00:07]} 7. Bf4 {[%emt 0:00:44]} e5 {[%emt 0:00:06]} 8. Bg5 {[%emt 0:00:06]} a6 {[%emt 0:00:05]} 9. Na3 {[%emt 0:00:07]} b5 {[%emt 0:00:12]} 10. Nd5 {[%emt 0:01:22]} Be7 {[%emt 0:00:12]} 11. Bxf6 {[%emt 0:00:11]} Bxf6 {[%emt 0:00:05]} 12. c4 {[%emt 0:00:37]} b4 {[%emt 0:01:17] 12...0-0 might become the main line. B33: Sicilian: Pelikan and Sveshnikov Variations.} 13. Nc2 {[%emt 0:00:17]} O-O {[%emt 0:01:17]} 14. Ncxb4 {[%emt 0:06:48]} Nxb4 {[%emt 0:00:40] The position is equal.} 15. Nxb4 {[%emt 0:00:30]} Qb6 {[%emt 0:00:08]} 16. Nd5 {[%emt 0:10:53]} Qxb2 {[%emt 0:01:07]} 17. Be2 {[%emt 0:05:41]} Bd8 {[%emt 0:06:46]} 18. O-O {[%emt 0:03:18] [#]} Qa3 $146 {[%emt 0:08:58]} ({Predecessor:} 18... Be6 19. c5 dxc5 20. Bc4 Bg5 21. g3 Qd4 22. Qe2 Qd2 23. Rfd1 {½-½ (22) Betker,J (2454)-Serner,A (2417) ICCF email 2019}) 19. Qd2 {[%emt 0:15:13]} Be6 {[%emt 0:07:58]} 20. Rfd1 {[%emt 0:03:17]} Rb8 {[%emt 0:08:14]} 21. Rab1 {[%emt 0:03:03]} Ba5 {[%emt 0:07:34]} 22. Qc2 {[%emt 0:07:19][%cal Oc4c5]} Qc5 {[%emt 0:21:10]} 23. Qd3 {[%emt 0:06:50]} g6 {[%emt 0:01:56]} 24. h4 {[%emt 0:04:49]} Kg7 {[%emt 0:01:22]} 25. Ne3 {[%emt 0:02:09]} Rxb1 {[%emt 0:04:27]} 26. Rxb1 {[%emt 0:00:47]} Bb6 {[%emt 0:00:47]} 27. Rd1 {[%emt 0:11:21]} (27. h5 $11) 27... Qa5 $17 {[%emt 0:03:19]} 28. Nd5 {[%emt 0:04:38]} ({Not} 28. Qxd6 $2 Rd8 29. Qe7 Rxd1+ 30. Bxd1 Qe1+ 31. Kh2 Bxe3 32. fxe3 Qxd1 $19) 28... Bd4 {[%emt 0:01:38]} 29. Qb3 {[%emt 0:02:28]} Qc5 {[%emt 0:03:27]} 30. Qf3 {[%emt 0:00:45]} f5 {[%emt 0:01:58] [#] Hoping for ...fxe4.} 31. Rb1 {[%emt 0:00:37]} (31. Ne3 $17 {might work better.}) 31... Rf7 {[%emt 0:03:03]} ({Black should play} 31... Qa7 $19 {And now ...fxe4 would win.} 32. Ne3 f4) 32. Ne3 {[%emt 0:01:33]} h5 {[%emt 0:07:30] Black is more active.} (32... Qa5 $17 33. a3 (33. exf5 Bxf5 34. Rb7 Bd7 $19) 33... fxe4 34. Qxe4 Qxa3) 33. Rb3 {[%emt 0:01:00]} (33. exf5 $1 $15 Bxf5 34. Rb7 (34. Nxf5+ Rxf5 35. Qa8 Bxf2+ 36. Kh2 Qe3 $17)) 33... f4 {[%emt 0:00:58]} (33... Qa5 $19 {and Black stays clearly on top. Threatens to win with ...fxe4.} 34. Kh2 (34. exf5 $2 Bxf5 35. Rb7 Bd7 $17) 34... f4 35. Nf5+ gxf5 36. Qxh5 Qd8) 34. Nd5 $2 {[%emt 0:01:25][%mdl 8192]} (34. Nc2 $17) 34... Bg4 $19 {[%emt 0:00:44]} 35. Qd3 {[%emt 0:00:02]} Bxf2+ {[%emt 0:00:18] This bishop pair is nice.} 36. Kh1 {[%emt 0:00:37]} Bxh4 {[%emt 0:01:10] [#] Strongly threatening ...Qf2.} 37. Qd1 {[%emt 0:01:01]} Qf2 {[%emt 0:03:01]} 38. Rb2 {[%emt 0:01:41]} f3 {[%emt 0:00:53]} 39. gxf3 {[%emt 0:01:28] Weighted Error Value: White=0.48/Black=0.21 (precise)} 0-1

[Event "Vienna Championship-B 2022"]
[Site "Vienna"]
[Date "2022.09.18"]
[Round "2.4"]
[White "Zetthofer, Gerald"]
[Black "Krejcar, Walter"]
[Result "1-0"]
[ECO "D94"]
[WhiteElo "2153"]
[BlackElo "1770"]
[Annotator "TA"]
[PlyCount "83"]
[EventDate "2022.09.17"]
[EventType "swiss"]
[EventCountry "AUT"]
[SourceTitle "playchess.com"]
[Source "ChessBase"]
[SourceQuality "1"]
[TimeControl "5400+30"]

{[%evp 15,83,29,49,61,60,43,74,75,77,64,94,99,129,94,161,150,159,171,195,194,201,154,301,153,173,136,139,112,139,80,86,62,63,79,104,100,147,132,209,198,209,197,271,245,252,252,358,359,358,361,316,323,1067,1048,991,991,1244,1238,1206,1148,1072,906,1707,968,1776,1756,1273,1183,29995,29996]} 1. d4 {[%emt 0:01:40]} d5 {[%emt 0:00:33]} 2. Nf3 {[%emt 0:00:28]} Nf6 {[%emt 0:00:47]} 3. c4 {[%emt 0:00:07]} c6 {[%emt 0:00:37]} 4. Nc3 {[%emt 0:00:21]} g6 {[%emt 0:01:29]} 5. e3 {[%emt 0:01:52]} Bg7 {[%emt 0:00:49]} 6. Bd3 {[%emt 0:00:46]} dxc4 {[%emt 0:02:44]} 7. Bxc4 {[%emt 0:00:10]} O-O {[%emt 0:00:36]} 8. O-O {[%emt 0:00:06]} Nd5 {[%emt 0:02:55]} 9. Qb3 {[%emt 0:01:37][%cal Rc3d5] D94: Grünfeld: 4 Nf3 Bg7 5 e3.} e6 {[%emt 0:02:11]} 10. Rd1 {[%emt 0:02:18] [#]} b5 $146 {[%emt 0:01:26]} ({Predecessor:} 10... Nd7 11. e4 Nxc3 12. bxc3 b5 13. Be2 Bb7 14. a4 a6 15. Bf4 Nf6 16. Bg5 Qc7 17. Bxf6 Bxf6 {1-0 (55) Topolovsky,V (1937)-Mikulec,M (1781) Slovakia 2014}) 11. Be2 {[%emt 0:01:29] White is better.} a5 {[%emt 0:03:09]} 12. e4 {[%emt 0:02:05]} a4 {[%emt 0:00:53]} 13. Qc2 {[%emt 0:01:07]} Nb6 {[%emt 0:04:35]} 14. a3 {[%emt 0:01:20]} Ra7 {[%emt 0:02:44]} (14... Bb7 $16) 15. Be3 {[%emt 0:00:21]} Rb7 {[%emt 0:00:55]} 16. Rac1 {[%emt 0:01:03]} Qe7 {[%emt 0:00:46]} 17. e5 {[%emt 0:07:09]} Nd5 {[%emt 0:02:26]} 18. Ne4 {[%emt 0:02:24]} Bd7 {[%emt 0:00:52]} (18... Nxe3 $16 19. fxe3 Rb6) 19. Qd2 {[%emt 0:05:26]} (19. Bg5 $18 f6 20. exf6 Bxf6 21. Nxf6+ Nxf6 22. Ne5) 19... Nxe3 $16 {[%emt 0:03:27]} 20. Qxe3 {[%emt 0:00:51]} Na6 {[%emt 0:03:55][%cal Bb8a6,Ba6c7,Bc7d5][%mdl 32]} 21. Nd6 {[%emt 0:02:43]} Rbb8 {[%emt 0:00:18]} 22. Ng5 {[%emt 0:01:26]} ({White should play} 22. Ne1) 22... Nc7 {[%emt 0:00:30]} 23. Nge4 {[%emt 0:00:47] White is much more active.} Nd5 {[%emt 0:00:43]} 24. Qd2 {[%emt 0:00:38] White leaves nothing to chance now.} f6 {[%emt 0:05:51] [#]} 25. f4 {[%emt 0:07:11][%cal Bf2f4,Bf4e5][%mdl 32]} (25. exf6 Nxf6 26. Nxf6+ Rxf6 $14) 25... fxe5 {[%emt 0:03:58]} (25... Rbd8 $142) 26. fxe5 {[%emt 0:00:12]} Qh4 {[%emt 0:05:21] [#]} (26... h5 $16) 27. g3 $1 $18 {[%emt 0:02:46]} Qd8 {[%emt 0:05:34]} 28. Nc5 {[%emt 0:02:39] Pair of Knights!} (28. Rf1 Qb6 29. Bf3 Ne7) 28... h5 {[%emt 0:04:16]} (28... Ne7 $142 29. Bg4 Nf5) 29. Rf1 {[%emt 0:00:41] Black must now prevent Rxf8+.} Qe7 {[%emt 0:01:04]} 30. Bd3 {[%emt 0:02:18]} Kh7 {[%emt 0:01:13]} (30... Rf5 {might work better.} 31. Bxf5 exf5) 31. Nxd7 {[%emt 0:02:27]} ({Weaker is} 31. Bxg6+ Kxg6 32. Qc2+ (32. Nxd7 Qxd7 33. Qc2+ Kh6 $17) 32... Kh6 33. Qd2+ (33. Rce1 Be8 $17) 33... Kh7 34. Qc2+ (34. Qe2 $2 Be8 $19) 34... Kg8 $17) 31... Qxd7 {[%emt 0:02:17]} 32. Qg5 {[%emt 0:00:39]} Ne7 {[%emt 0:07:12]} 33. Qxh5+ {[%emt 0:02:02]} Kg8 $2 {[%emt 0:00:07]} (33... Bh6 34. Rxf8 Rxf8) 34. Bxg6 {[%emt 0:00:50]} Nxg6 {[%emt 0:00:37]} 35. Qxg6 {[%emt 0:00:07]} Qa7 {[%emt 0:01:41]} 36. Qxe6+ {[%emt 0:01:01]} Kh8 {[%emt 0:00:38]} 37. Qg4 {[%emt 0:03:16]} Bh6 {[%emt 0:03:39]} 38. Rce1 {[%emt 0:06:55]} c5 {[%emt 0:04:29]} 39. Qg6 {[%emt 0:07:01]} Rxf1+ {[%emt 0:02:01]} 40. Rxf1 {[%emt 0:00:23] White wants to mate with Rf7.} Be3+ {[%emt 0:00:18]} 41. Kg2 {[%emt 0:00:38]} Qa8+ {[%emt 0:00:57]} 42. Kh3 {[%emt 0:00:32] Weighted Error Value: White=0.18 (very precise) /Black=0.50} 1-0

[Event "Vienna Championship-B 2022"]
[Site "Vienna"]
[Date "2022.09.18"]
[Round "2.5"]
[White "Anastasakis, Georgios"]
[Black "Prummer, Sebastian"]
[Result "1-0"]
[ECO "C54"]
[WhiteElo "1893"]
[BlackElo "1762"]
[Annotator "NA COMBH"]
[PlyCount "125"]
[EventDate "2022.09.17"]
[EventType "swiss"]
[EventCountry "AUT"]
[SourceTitle "playchess.com"]
[Source "ChessBase"]
[SourceQuality "1"]
[TimeControl "5400+30"]

1. e4 {[%emt 0:00:22]} e5 {[%emt 0:00:24]} 2. Nf3 {[%emt 0:00:07]} Nc6 {[%emt 0:00:11]} 3. Bc4 {[%emt 0:00:06]} Bc5 {[%emt 0:00:09]} 4. c3 {[%emt 0:00:31]} Nf6 {[%emt 0:00:10]} 5. d3 {[%emt 0:00:05]} d6 {[%emt 0:00:24]} 6. Bb3 {[%emt 0:01:40]} O-O {[%emt 0:02:02]} 7. O-O {[%emt 0:00:44]} Bg4 {[%emt 0:00:47]} 8. h3 {[%emt 0:00:37]} Bh5 {[%emt 0:00:36]} 9. Re1 {[%emt 0:02:13]} Bb6 {[%emt 0:05:41]} 10. Nbd2 {[%emt 0:01:31]} Nd7 {[%emt 0:03:55]} 11. Nf1 {[%emt 0:01:39]} Nc5 {[%emt 0:01:42]} 12. Bc2 {[%emt 0:06:48]} Ne6 {[%emt 0:02:05]} 13. Ng3 {[%emt 0:00:38]} Bg6 {[%emt 0:00:27]} 14. b4 {[%emt 0:17:04]} a6 {[%emt 0:05:26]} 15. a3 {[%emt 0:00:43]} Qf6 {[%emt 0:04:44]} 16. Ra2 {[%emt 0:04:15]} Nf4 {[%emt 0:10:46]} 17. Bb3 {[%emt 0:02:35]} Nd8 {[%emt 0:59:31]} 18. Be3 {[%emt 0:17:32]} Nde6 {[%emt 0:00:00]} 19. d4 {[%emt 0:02:19]} Rae8 {[%emt 0:00:00]} 20. d5 {[%emt 0:05:53]} Ng5 {[%emt 0:00:00]} 21. Nxg5 {[%emt 0:01:39]} Qxg5 {[%emt 0:00:00]} 22. c4 {[%emt 0:09:01]} Bxe3 {[%emt 0:00:00]} 23. Rxe3 {[%emt 0:00:21]} h5 {[%emt 0:00:00]} 24. Qf1 {[%emt 0:02:30]} h4 {[%emt 0:00:00]} 25. Ne2 {[%emt 0:00:16]} f5 {[%emt 0:00:00]} 26. exf5 {[%emt 0:00:41]} Bxf5 {[%emt 0:00:00]} 27. Kh2 {[%emt 0:02:15]} Rf6 {[%emt 0:00:00]} 28. Nxf4 {[%emt 0:03:14]} Qxf4+ {[%emt 0:00:00]} 29. Kh1 {[%emt 0:00:41]} e4 {[%emt 0:00:00]} 30. Rae2 {[%emt 0:01:36]} Rg6 {[%emt 0:00:00]} 31. Bc2 {[%emt 0:00:42]} a5 {[%emt 0:02:13]} 32. f3 {[%emt 0:02:42]} Rf8 {[%emt 0:01:58]} 33. Bxe4 {[%emt 0:00:33]} Bxe4 {[%emt 0:01:04]} 34. Rxe4 {[%emt 0:00:02]} Qf6 {[%emt 0:00:11]} 35. Re6 {[%emt 0:00:22]} Qg5 {[%emt 0:00:14]} 36. Rxg6 {[%emt 0:00:27]} Qxg6 {[%emt 0:00:02]} 37. Qe1 {[%emt 0:00:33]} Qd3 {[%emt 0:00:47]} 38. Re4 {[%emt 0:01:13]} Qxa3 {[%emt 0:01:20]} 39. bxa5 {[%emt 0:02:09]} Qa4 {[%emt 0:01:19]} 40. Rxh4 {[%emt 0:01:26]} Re8 {[%emt 0:00:12]} 41. Qc3 {[%emt 0:01:28]} Qd1+ {[%emt 0:00:40]} 42. Kh2 {[%emt 0:00:03]} Re1 {[%emt 0:00:41]} 43. Rg4 {[%emt 0:00:44]} Rh1+ {[%emt 0:00:46]} 44. Kg3 {[%emt 0:00:04]} Qe1+ {[%emt 0:00:16]} 45. Qxe1 {[%emt 0:00:03]} Rxe1 {[%emt 0:00:08]} 46. Re4 {[%emt 0:00:25]} Rc1 {[%emt 0:00:10]} 47. Re8+ {[%emt 0:02:21]} Kf7 {[%emt 0:00:11]} 48. Rb8 {[%emt 0:00:07]} Rxc4 {[%emt 0:00:08]} 49. Rxb7 {[%emt 0:00:02]} Ke8 {[%emt 0:01:03]} 50. a6 {[%emt 0:00:39]} Kd7 {[%emt 0:00:09]} 51. a7 {[%emt 0:00:17]} Ra4 {[%emt 0:00:09]} 52. f4 {[%emt 0:00:28]} Ke7 {[%emt 0:01:29]} 53. Rxc7+ {[%emt 0:00:40]} Kf6 {[%emt 0:00:07]} 54. Kf3 {[%emt 0:00:25]} g5 {[%emt 0:00:38]} 55. fxg5+ {[%emt 0:00:35]} Kxg5 {[%emt 0:00:07]} 56. Ke3 {[%emt 0:01:00]} Kf5 {[%emt 0:00:19]} 57. Kd3 {[%emt 0:00:38]} Ke5 {[%emt 0:00:47]} 58. Kc3 {[%emt 0:00:06]} Kxd5 {[%emt 0:00:18]} 59. Kb3 {[%emt 0:00:08]} Ra1 {[%emt 0:00:18]} 60. Kb4 {[%emt 0:00:11]} Ke4 {[%emt 0:00:51]} 61. Kb5 {[%emt 0:00:09]} d5 {[%emt 0:00:54]} 62. Kb6 {[%emt 0:00:09]} d4 {[%emt 0:01:21]} 63. Rc5 {[%emt 0:02:25]} 1-0

[Event "Vienna Championship-B 2022"]
[Site "Vienna"]
[Date "2022.09.18"]
[Round "2.6"]
[White "Hirsch, Adolf Jun."]
[Black "Andresen, Erik"]
[Result "0-1"]
[ECO "E63"]
[WhiteElo "1731"]
[BlackElo "1879"]
[Annotator "NA COMBH"]
[PlyCount "64"]
[EventDate "2022.09.17"]
[EventType "swiss"]
[EventCountry "AUT"]
[SourceTitle "playchess.com"]
[Source "ChessBase"]
[SourceQuality "1"]
[TimeControl "5400+30"]

1. Nf3 {[%emt 0:00:02]} d6 {[%emt 0:00:29]} 2. d4 {[%emt 0:00:06]} Nf6 {[%emt 0:00:39]} 3. g3 {[%emt 0:00:08]} g6 {[%emt 0:00:08]} 4. Bg2 {[%emt 0:00:05]} Bg7 {[%emt 0:00:09]} 5. O-O {[%emt 0:00:10]} O-O {[%emt 0:00:07]} 6. c4 {[%emt 0:00:11]} Nc6 {[%emt 0:00:08]} 7. Nc3 {[%emt 0:00:20]} a6 {[%emt 0:00:05]} 8. b3 {[%emt 0:00:58]} Rb8 {[%emt 0:00:17]} 9. e4 {[%emt 0:01:38]} Bg4 {[%emt 0:00:21]} 10. Be3 {[%emt 0:00:42]} e5 {[%emt 0:05:23]} 11. Qd3 {[%emt 0:13:44]} Bxf3 {[%emt 0:04:48]} 12. Bxf3 {[%emt 0:00:03]} exd4 {[%emt 0:00:07]} 13. Bxd4 {[%emt 0:02:38]} Nxd4 {[%emt 0:00:21]} 14. Qxd4 {[%emt 0:00:10]} Nxe4 {[%emt 0:00:53]} 15. Qxe4 {[%emt 0:00:20]} Bxc3 {[%emt 0:00:05]} 16. Rad1 {[%emt 0:02:26]} Re8 {[%emt 0:05:19]} 17. Qd3 {[%emt 0:01:50]} Be5 {[%emt 0:09:44]} 18. h4 {[%emt 0:00:37]} c6 {[%emt 0:04:27]} 19. Kg2 {[%emt 0:00:27]} h5 {[%emt 0:02:04]} 20. Rh1 {[%emt 0:03:02]} Kg7 {[%emt 0:02:25]} 21. g4 {[%emt 0:12:36]} hxg4 {[%emt 0:01:14]} 22. Bxg4 {[%emt 0:00:06]} Rh8 {[%emt 0:00:21]} 23. Bf3 {[%emt 0:04:32]} Rxh4 {[%emt 0:02:45]} 24. Rxh4 {[%emt 0:00:48]} Qxh4 {[%emt 0:00:06]} 25. Rh1 {[%emt 0:04:43]} Qg5+ {[%emt 0:00:51]} 26. Kf1 {[%emt 0:00:21]} Re8 {[%emt 0:03:50]} 27. Rg1 {[%emt 0:04:44]} Qf6 {[%emt 0:04:18]} 28. Be4 {[%emt 0:07:03]} Bd4 {[%emt 0:06:01]} 29. Rg2 {[%emt 0:00:27]} Qe5 {[%emt 0:00:44]} 30. Rg4 {[%emt 0:06:00]} f5 {[%emt 0:00:53]} 31. Bxf5 {[%emt 0:00:07]} Qe1+ {[%emt 0:00:05]} 32. Kg2 {[%emt 0:00:18]} Qxf2+ {[%emt 0:47:23]} 0-1